bitfinex-derivatives/quotes_SOLF0:USTF0_20250421
["timestamp","ask_amount","ask_price","bid_price","bid_amount"]
[1745238315836,0.05392874,139.11,139.09,0.05094014]
[1745238316233,6.30322275,139.11,139.09,0.05094014]
[1745238316634,7.1889,139.1,139.09,0.05094014]
[1745238317138,7.24252874,139.11,139.09,0.05094014]
[1745238317339,6.24929401,139.1,139.09,0.05094014]
[1745238317838,13.43819401,139.1,139.09,0.05094014]
[1745238318540,32.52929401,139.1,139.02,26.28]
[1745238318741,6.24929401,139.06,139.01,6.24929401]
[1745238319334,6.24929401,139.05,139.0,34.56379401]
[1745238319740,7.24131362,139.04,139.01,7.23340666]
[1745238320334,0.04901362,139.04,139.02,7.1929]
[1745238320738,0.04901362,139.04,139.01,6.28940067]
[1745238321041,0.04901362,139.04,139.03,7.1925]
[1745238321242,6.24929401,139.08,139.03,6.24929401]
[1745238321443,13.43879401,139.09,139.05,7.1912]
[1745238321742,13.43879401,139.09,139.04,6.24929401]
[1745238322341,13.43879401,139.09,139.05,7.191]
[1745238322538,0.05041023,139.08,139.05,7.23682375]
[1745238322938,7.24031023,139.08,139.05,7.23682375]
[1745238323139,0.05041023,139.08,139.05,6.29511776]
[1745238323940,0.05041023,139.08,139.06,7.1907]
[1745238324141,0.05041023,139.08,139.06,6.24929401]
[1745238324541,0.05041023,139.08,139.07,7.1904]
[1745238324843,0.05041023,139.08,139.05,6.29511776]
[1745238325142,0.05041023,139.08,139.06,7.1906]
[1745238325345,0.05041023,139.08,139.06,6.24929401]
[1745238325641,0.05041023,139.08,139.07,13.43969401]
[1745238329547,0.05041023,139.08,139.07,6.24929401]
[1745238330045,0.05041023,139.08,139.06,7.1907]
[1745238330240,0.05041023,139.08,139.07,7.1904]
[1745238330439,0.05041023,139.08,139.05,6.29511776]
[1745238330746,0.05041023,139.08,139.06,7.1909]
[1745238331247,0.05041023,139.08,139.07,7.1904]
[1745238331449,0.05041023,139.08,139.05,6.29511776]
[1745238331950,0.05041023,139.08,139.06,7.1906]
[1745238332750,0.05041023,139.08,139.07,7.1904]
[1745238332949,0.05041023,139.08,139.07,13.43969401]
[1745238335054,0.05041023,139.08,139.05,6.29511776]
[1745238335254,0.05041023,139.08,139.05,0.04582375]
[1745238335757,7.1909,139.06,139.05,0.04582375]
[1745238336656,7.2,139.06,138.92,8.45144833]
[1745238336853,6.24929401,139.04,138.98,6.24929401]
[1745238337048,7.1929,139.03,139.0,7.1936]
[1745238337251,6.24929401,139.02,138.98,6.24929401]
[1745238337447,26.28,139.01,138.93,3.8786]
[1745238337648,7.1944,139.0,138.97,6.24929401]
[1745238337852,0.05257491,138.98,138.97,6.24929401]
[1745238338559,26.28,139.01,138.97,6.24929401]
[1745238338759,26.28,139.01,139.0,6.24929401]
[1745238342463,26.28,139.01,138.99,0.05452868]
[1745238343761,26.28,139.01,138.99,6.30382269]
[1745238344358,26.28,139.01,138.99,0.05452868]
[1745238345360,7.1941,139.0,138.99,0.05452868]
[1745238345560,26.28,139.01,138.99,0.05452868]
[1745238345860,33.4737,139.01,138.99,0.05452868]
[1745238346161,6.24929401,139.0,138.99,0.05452868]
[1745238346361,6.24929401,139.0,138.93,3.967]
[1745238346362,6.24929401,139.0,138.94,6.24929401]
[1745238346662,13.44399401,138.99,138.94,13.44609401]
[1745238346861,13.44399401,138.99,138.94,7.1968]
[1745238347061,13.44399401,138.99,138.94,13.44609401]
[1745238347559,0.048662,138.98,138.95,0.04134276]
[1745238347860,26.28,138.97,138.95,7.23794276]
[1745238348057,26.28,138.97,138.95,0.04134276]
[1745238348262,26.28,138.97,138.94,6.24929401]
[1745238348762,26.28,138.97,138.96,7.1961]
[1745238354962,26.28,138.97,138.95,7.1964]
[1745238354963,32.52929401,138.97,138.95,7.1964]
[1745238355958,32.52929401,138.97,138.96,7.1961]
[1745238357164,32.52929401,138.97,138.95,7.1964]
[1745238357563,32.52929401,138.97,138.92,6.24929401]
[1745238357961,0.05165633,138.96,138.92,6.24929401]
[1745238358166,0.05165633,138.96,138.94,7.1968]
[1745238358367,0.05165633,138.96,138.91,6.24929401]
[1745238358561,7.24805633,138.96,138.91,6.24929401]
[1745238358866,7.24805633,138.96,138.93,7.1974]
[1745238359062,7.24805633,138.96,138.91,6.24929401]
[1745238359366,7.24805633,138.96,138.93,7.1973]
[1745238359570,7.24805633,138.96,138.91,6.24929401]
[1745238359764,0.05165633,138.96,138.91,6.24929401]
[1745238361664,0.05165633,138.96,138.93,6.24929401]
[1745238362067,0.05165633,138.96,138.95,7.1966]
[1745238362766,0.05165633,138.96,138.94,7.1969]
[1745238363067,0.05165633,138.96,138.93,6.24929401]
[1745238363269,0.05165633,138.96,138.94,7.1967]
[1745238363971,7.24775633,138.96,138.94,7.1967]
[1745238364169,0.05165633,138.96,138.94,7.1967]
[1745238364864,6.30095034,138.96,138.91,6.24929401]
[1745238365066,6.24929401,138.94,138.89,6.24929401]
[1745238365466,0.0550449,138.93,138.91,7.1984]
[1745238365771,32.54929401,138.92,138.87,6.24929401]
[1745238366970,32.54929401,138.92,138.89,7.1993]
[1745238367167,39.74789401,138.92,138.89,7.1993]
[1745238367366,33.4986,138.92,138.89,7.1993]
[1745238368371,7.199,138.91,138.88,7.1999]
[1745238368571,7.199,138.91,138.87,6.24929401]
[1745238368870,7.199,138.91,138.88,6.24929401]
[1745238369072,0.04636307,138.9,138.88,6.24929401]
[1745238369873,0.04636307,138.9,138.87,6.24929401]
[1745238370472,7.24556307,138.9,138.87,7.2007]
[1745238371471,0.04636307,138.9,138.86,6.24929401]
[1745238371776,0.04636307,138.9,138.85,26.3]
[1745238371777,0.04636307,138.9,138.88,6.24929401]
[1745238372072,0.04636307,138.9,138.89,6.24929401]
[1745238372474,0.04636307,138.9,138.89,7.1997]
[1745238372674,0.04636307,138.9,138.89,13.44899401]
[1745238375475,0.04636307,138.9,138.89,7.1997]
[1745238375772,0.04636307,138.9,138.89,13.44899401]
[1745238381185,598.3627,138.96,138.89,32.54929401]
[1745238381482,26.3,138.96,138.91,6.24929401]
[1745238381678,26.3,138.96,138.94,7.1968]
[1745238382280,26.35366861,138.96,138.94,7.24316307]
[1745238382678,11.43333,138.97,138.95,6.24929401]
[1745238383181,11.43333,138.97,138.95,13.44559401]
[1745238383884,11.48731204,138.97,138.95,13.44559401]
[1745238384787,11.48731204,138.97,138.96,7.1961]
[1745238385283,11.48731204,138.97,138.95,13.44569401]
[1745238385681,11.48731204,138.97,138.94,0.04636307]
[1745238385881,37.78731204,138.97,138.94,0.04636307]
[1745238386189,44.98321204,138.97,138.94,7.24326307]
[1745238387086,37.78731204,138.97,138.95,7.1962]
[1745238387983,37.78731204,138.97,138.94,0.04636307]
[1745238388286,11.48731204,138.97,138.96,7.1961]
[1745238392195,11.48731204,138.97,138.95,7.1964]
[1745238392493,11.48731204,138.97,138.94,6.29565708]
[1745238392685,11.48731204,138.97,138.95,7.1962]
[1745238394790,7.1964,138.96,138.94,0.04636307]
[1745238394995,32.54929401,138.96,138.94,0.04636307]
[1745238395694,39.74559401,138.96,138.94,0.04636307]
[1745238396995,26.3,138.96,138.94,7.24336307]
[1745238397997,33.4962,138.96,138.94,0.04636307]
[1745238398297,26.3,138.96,138.94,0.04636307]
[1745238398693,7.1966,138.95,138.94,0.04636307]
[1745238402001,38.39759401,138.96,138.9,6.24929401]
[1745238402495,7.198,138.93,138.9,13.44819401]
[1745238402897,6.24929401,138.94,138.89,7.1994]
[1745238403093,7.24540084,138.92,138.89,7.25095187]
[1745238404396,7.24540084,138.92,138.9,7.1992]
[1745238404601,0.04720084,138.92,138.9,7.1992]
[1745238405003,0.04720084,138.92,138.91,7.1987]
[1745238418606,0.04720084,138.92,138.91,13.44799401]
[1745238419809,0.04720084,138.92,138.91,7.1987]
[1745238428609,26.3,138.96,138.94,7.1967]
[1745238429009,26.3,138.96,138.92,6.24929401]
[1745238429217,26.3,138.96,138.95,7.1966]
[1745238429815,11.48607755,138.97,138.95,7.1966]
[1745238430317,11.48607755,138.97,138.96,7.1961]
[1745238431218,11.48607755,138.97,138.95,7.1963]
[1745238431517,11.48607755,138.97,138.94,0.05096343]
[1745238432019,18.68197755,138.97,138.94,7.24786343]
[1745238433218,11.48607755,138.97,138.94,0.05096343]
[1745238433418,6.24929401,138.96,138.94,0.05096343]
[1745238433914,13.38887755,138.97,138.94,0.05096343]
[1745238435021,11.48607755,138.97,138.95,7.1964]
[1745238435218,11.48607755,138.97,138.94,0.05096343]
[1745238435426,11.48607755,138.97,138.95,6.24929401]
[1745238435621,11.48607755,138.97,138.96,7.1961]
[1745238438624,11.48607755,138.97,138.95,7.1965]
[1745238439425,11.48607755,138.97,138.96,7.1961]
[1745238439927,11.48607755,138.97,138.95,13.44559401]
[1745238440226,11.48607755,138.97,138.94,0.05096343]
[1745238440426,18.68197755,138.97,138.94,0.05096343]
[1745238440629,18.68197755,138.97,138.94,7.24786343]
[1745238443429,11.48607755,138.97,138.95,7.1966]
[1745238445936,11.48607755,138.97,138.96,7.1961]
[1745238447038,11.48607755,138.97,138.95,7.1965]
[1745238447338,11.48607755,138.97,138.94,6.30025744]
[1745238447937,18.68197755,138.97,138.94,13.49715744]
[1745238448437,18.68197755,138.97,138.94,6.30025744]
[1745238448939,11.48607755,138.97,138.94,0.05096343]
[1745238449737,18.68177755,138.97,138.95,7.1966]
[1745238449938,11.48607755,138.97,138.95,7.1966]
[1745238450339,11.48607755,138.97,138.94,0.05096343]
[1745238450940,11.48607755,138.97,138.95,7.1966]
[1745238451239,11.48607755,138.97,138.94,0.05096343]
[1745238451542,18.68197755,138.97,138.94,7.24776343]
[1745238453242,7.1962,138.96,138.94,7.24776343]
[1745238454338,7.1962,138.96,138.94,0.05096343]
[1745238458252,18.68197755,138.97,138.94,7.24816343]
[1745238458551,11.48607755,138.97,138.94,0.05096343]
[1745238458950,11.48607755,138.97,138.95,7.1964]
[1745238459150,11.48607755,138.97,138.94,0.05096343]
[1745238459453,11.48607755,138.97,138.95,7.1962]
[1745238459653,11.48607755,138.97,138.94,0.05096343]
[1745238460051,11.48607755,138.97,138.95,7.1964]
[1745238460558,11.48607755,138.97,138.94,0.05096343]
[1745238461057,7.1964,138.96,138.94,0.05096343]
[1745238462551,11.48607755,138.97,138.94,0.05096343]
[1745238462757,7.1966,138.95,138.94,0.05096343]
[1745238465467,7.1977,138.93,138.89,6.24929401]
[1745238465965,7.1977,138.93,138.91,7.1987]
[1745238466665,7.24765038,138.93,138.91,0.04990602]
[1745238469269,7.1982,138.92,138.91,0.04990602]
[1745238470469,13.44749401,138.92,138.91,0.04990602]
[1745238471871,39.74749401,138.92,138.91,0.04990602]
[1745238483178,7.1989,138.91,138.88,7.2]
[1745238483673,7.1988,138.91,138.88,7.2]
[1745238483876,32.54929401,138.92,138.88,7.2]
[1745238484079,32.54929401,138.92,138.87,6.24929401]
[1745238484274,6.24929401,138.9,138.83,361.0]
[1745238484482,6.24929401,138.9,138.84,6.24929401]
[1745238484676,0.04844505,138.88,138.84,6.24929401]
[1745238484873,7.24894505,138.88,138.85,7.2017]
[1745238485278,7.24894505,138.88,138.86,7.2012]
[1745238485577,7.24894505,138.88,138.85,6.24929401]
[1745238485874,7.24894505,138.88,138.84,7.2019]
[1745238486075,7.2008,138.87,138.84,13.45119401]
[1745238486475,7.2014,138.86,138.81,26.3]
[1745238486682,32.54929401,138.88,138.83,6.24929401]
[1745238486875,0.05301561,138.85,138.83,6.24929401]
[1745238487179,0.05301561,138.85,138.83,13.45189401]
[1745238488383,0.05301561,138.85,138.84,7.2023]
[1745238488582,0.05301561,138.85,138.83,6.24929401]
[1745238488775,0.05301561,138.85,138.79,361.0]
[1745238488980,0.05301561,138.85,138.84,6.24929401]
[1745238489280,0.05301561,138.85,138.83,6.24929401]
[1745238489582,0.05301561,138.85,138.83,13.45189401]
[1745238489783,0.05301561,138.85,138.83,6.24929401]
[1745238490684,0.05301561,138.85,138.83,13.45159401]
[1745238490984,0.05301561,138.85,138.83,6.24929401]
[1745238491281,0.05301561,138.85,138.83,13.45209401]
[1745238492179,0.05301561,138.85,138.84,7.2023]
[1745238492380,32.54929401,138.9,138.83,6.24929401]
[1745238492583,32.54929401,138.9,138.86,6.24929401]
[1745238492886,39.74879401,138.9,138.86,6.24929401]
[1745238493585,0.05147043,138.89,138.87,0.04814081]
[1745238497685,0.05147043,138.89,138.87,7.24884081]
[1745238498789,0.05147043,138.89,138.88,7.2003]
[1745238499189,0.05147043,138.89,138.87,0.04814081]
[1745238499693,0.05147043,138.89,138.87,7.24864081]
[1745238499990,0.05147043,138.89,138.87,0.04814081]
[1745238500287,0.05147043,138.89,138.88,6.24929401]
[1745238500483,0.05147043,138.89,138.87,7.24874081]
[1745238501389,0.05147043,138.89,138.87,0.04814081]
[1745238501890,0.05147043,138.89,138.87,7.24884081]
[1745238502391,0.05147043,138.89,138.87,0.04814081]
[1745238503393,26.3,138.88,138.81,361.0]
[1745238503593,6.24929401,138.84,138.81,361.0]
[1745238503792,6.24929401,138.86,138.81,367.24929401]
[1745238503994,6.24929401,138.86,138.82,7.2031]
[1745238504593,0.05249102,138.85,138.82,7.2031]
[1745238505593,0.05249102,138.85,138.81,367.24929401]
[1745238505793,0.05249102,138.85,138.83,6.24929401]
[1745238506895,0.05249102,138.85,138.83,13.45209401]
[1745238507795,7.2009,138.87,138.83,6.24929401]
[1745238508291,7.2009,138.87,138.83,13.45199401]
[1745238508890,7.2009,138.87,138.84,0.04848798]
[1745238509095,0.04854938,138.86,138.84,0.04848798]
[1745238509287,0.04854938,138.86,138.84,7.25078798]
[1745238509994,0.04854938,138.86,138.85,7.2018]
[1745238512091,0.04854938,138.86,138.84,7.25058798]
[1745238512298,0.04854938,138.86,138.84,0.04848798]
[1745238515297,0.04854938,138.86,138.84,7.25078798]
[1745238515498,7.24994938,138.86,138.84,0.04848798]
[1745238515899,0.04854938,138.86,138.84,0.04848798]
[1745238517401,7.24984938,138.86,138.84,0.04848798]
[1745238519303,7.2018,138.85,138.84,0.04848798]
[1745238525918,13.45109401,138.85,138.84,0.04848798]
[1745238526111,13.49944339,138.86,138.84,0.04848798]
[1745238526413,0.04854938,138.86,138.84,0.04848798]
[1745238527315,7.2018,138.85,138.84,0.04848798]
[1745238527912,13.45109401,138.85,138.84,0.04848798]
[1745238528320,7.2018,138.85,138.84,0.04848798]
[1745238530214,7.25004938,138.86,138.84,0.04848798]
[1745238530417,0.04854938,138.86,138.84,7.25048798]
[1745238530614,0.04854938,138.86,138.84,0.04848798]
[1745238531314,0.04854938,138.86,138.85,6.24929401]
[1745238532415,0.04854938,138.86,138.85,13.45109401]
[1745238533419,0.04854938,138.86,138.85,7.2018]
[1745238536312,0.04854938,138.86,138.84,13.49988199]
[1745238536521,6.29784339,138.86,138.84,0.04848798]
[1745238537018,13.49944339,138.86,138.84,0.04848798]
[1745238538922,7.25014938,138.86,138.84,0.04848798]
[1745238539121,13.49944339,138.86,138.84,0.04848798]
[1745238539417,7.25014938,138.86,138.84,0.04848798]
[1745238539623,13.49944339,138.86,138.84,0.04848798]
[1745238544724,6.29784339,138.86,138.84,7.25068798]
[1745238545226,6.29784339,138.86,138.84,0.04848798]
[1745238545726,13.49924339,138.86,138.84,0.04848798]
[1745238546326,6.29784339,138.86,138.84,0.04848798]
[1745238546829,13.49924339,138.86,138.84,0.04848798]
[1745238547227,6.29784339,138.86,138.84,0.04848798]
[1745238549429,6.29784339,138.86,138.84,7.25078798]
[1745238549727,0.04854938,138.86,138.84,7.25078798]
[1745238550024,6.29784339,138.86,138.84,0.04848798]
[1745238550230,0.04854938,138.86,138.83,6.24929401]
[1745238550528,6.24929401,138.89,138.83,6.24929401]
[1745238550729,7.2006,138.88,138.83,7.2026]
[1745238551031,6.24929401,138.87,138.81,10.26999401]
[1745238551230,7.2016,138.86,138.81,11.2244]
[1745238551431,0.04534477,138.85,138.81,11.2244]
[1745238551830,0.04534477,138.85,138.82,7.2033]
[1745238552430,0.04534477,138.85,138.81,11.2243]
[1745238552729,6.24929401,138.83,138.77,393.52929401]
[1745238553129,0.04759021,138.81,138.8,7.2041]
[1745238560434,0.04759021,138.81,138.8,13.45339401]
[1745238563735,0.04759021,138.81,138.8,7.2041]
[1745238566235,0.04759021,138.81,138.78,6.24929401]
[1745238566935,0.04759021,138.81,138.8,7.2044]
[1745238567135,0.04759021,138.81,138.78,6.24929401]
[1745238567536,0.04759021,138.81,138.79,7.2048]
[1745238573842,0.04759021,138.81,138.79,13.45409401]
[1745238576244,0.04759021,138.81,138.79,6.24929401]
[1745238576845,0.04759021,138.81,138.79,13.45379401]
[1745238590152,0.04759021,138.81,138.8,7.2044]
[1745238590452,0.04759021,138.81,138.79,6.24929401]
[1745238590647,0.04759021,138.81,138.79,13.45379401]
[1745238592352,0.04759021,138.81,138.8,7.2044]
[1745238594354,7.2026,138.84,138.81,7.2037]
[1745238594554,7.2026,138.84,138.81,13.45299401]
[1745238595552,7.25064769,138.84,138.81,13.45299401]
[1745238599359,7.25064769,138.84,138.81,6.24929401]
[1745238599861,7.25064769,138.84,138.81,13.45269401]
[1745238600155,7.203,138.83,138.79,6.29689243]
[1745238600361,7.203,138.83,138.8,7.204]
[1745238600553,6.2973417,138.84,138.8,7.204]
[1745238600754,7.2031,138.83,138.8,7.204]
[1745238602164,13.45239401,138.83,138.8,7.204]
[1745238603665,7.2035,138.82,138.8,7.204]
[1745238603869,6.24929401,138.83,138.8,7.204]
[1745238604165,13.45239401,138.83,138.8,7.204]
[1745238607169,13.45239401,138.83,138.81,7.2038]
[1745238607368,13.45239401,138.83,138.79,0.04759842]
[1745238607768,13.45239401,138.83,138.8,7.2039]
[1745238611769,13.45239401,138.83,138.81,7.2039]
[1745238612874,13.4999417,138.84,138.81,7.2039]
[1745238613171,0.04804769,138.84,138.81,7.2039]
[1745238613372,7.2029,138.83,138.81,7.2039]
[1745238613969,7.2029,138.83,138.8,7.2042]
[1745238616375,6.2973417,138.84,138.8,7.2042]
[1745238616776,7.2031,138.83,138.8,7.2042]
[1745238618277,6.2973417,138.84,138.8,7.2042]
[1745238618876,7.203,138.83,138.8,7.2042]
[1745238621275,7.2035,138.82,138.79,7.25229842]
[1745238621577,0.04804769,138.84,138.8,6.24929401]
[1745238621778,7.2032,138.83,138.8,7.2042]
[1745238622073,6.24929401,138.83,138.79,0.04759842]
[1745238622279,7.2036,138.82,138.79,7.25209842]
[1745238622578,7.2036,138.82,138.79,0.04759842]
[1745238623178,7.2036,138.82,138.8,7.2042]
[1745238624481,7.2036,138.82,138.79,7.25229842]
[1745238624884,7.2036,138.82,138.79,0.04759842]
[1745238625080,7.2036,138.82,138.8,7.2043]
[1745238629388,13.45239401,138.83,138.81,7.2038]
[1745238629581,13.45239401,138.83,138.79,0.04759842]
[1745238630286,7.2035,138.82,138.8,7.2042]
[1745238630481,0.04804769,138.84,138.8,6.24929401]
[1745238630781,7.25064769,138.84,138.81,7.2036]
[1745238631087,7.25064769,138.84,138.8,6.24929401]
[1745238631382,7.25064769,138.84,138.81,7.2038]
[1745238631587,7.203,138.83,138.79,6.29689243]
[1745238631886,7.203,138.83,138.8,7.2041]
[1745238633891,13.4998417,138.84,138.81,7.2037]
[1745238634490,7.2032,138.83,138.8,7.2041]
[1745238634992,7.2034,138.82,138.79,7.25229842]
[1745238635189,7.2034,138.82,138.79,0.04759842]
[1745238635488,7.2031,138.83,138.8,7.2043]
[1745238637291,7.2031,138.83,138.81,7.2038]
[1745238647499,7.2031,138.83,138.8,7.2042]
[1745238648303,6.2973417,138.84,138.79,7.25229842]
[1745238648493,6.2973417,138.84,138.79,0.04759842]
[1745238649000,7.2034,138.82,138.8,7.2041]
[1745238649390,6.2973417,138.84,138.8,7.2041]
[1745238649696,7.2032,138.83,138.8,7.2041]
[1745238650497,7.2034,138.82,138.8,7.2041]
[1745238651101,6.2973417,138.84,138.79,7.25239842]
[1745238651397,6.2973417,138.84,138.79,0.04759842]
[1745238651699,6.2973417,138.84,138.8,7.2044]
[1745238652102,6.2973417,138.84,138.79,0.04759842]
[1745238652299,6.24929401,138.8,138.79,0.04759842]
[1745238652498,2.0387,138.85,138.79,0.04759842]
[1745238652699,0.05270355,138.81,138.79,7.25229842]
[1745238653001,0.05270355,138.81,138.79,0.04759842]
[1745238653499,0.05270355,138.81,138.8,7.2044]
[1745238660806,0.05270355,138.81,138.79,7.25219842]
[1745238661108,0.05270355,138.81,138.79,0.04759842]
[1745238661608,7.25690355,138.81,138.79,0.04759842]
[1745238662106,0.05270355,138.81,138.79,0.04759842]
[1745238662907,0.05270355,138.81,138.79,7.25229842]
[1745238665304,0.05270355,138.81,138.8,7.2044]
[1745238665709,34.51299401,138.86,138.8,6.24929401]
[1745238666111,7.2021,138.85,138.82,7.2031]
[1745238666812,7.25556271,138.85,138.82,7.25321962]
[1745238667106,7.2024,138.84,138.82,0.05011962]
[1745238667809,7.25546271,138.85,138.82,0.05011962]
[1745238668309,0.05346271,138.85,138.82,0.05011962]
[1745238668604,0.05346271,138.85,138.83,6.24929401]
[1745238668809,0.05346271,138.85,138.84,7.2023]
[1745238669110,570.48,138.91,138.83,6.24929401]
[1745238669310,6.24929401,138.92,138.87,6.24929401]
[1745238669611,32.48929401,138.93,138.88,6.24929401]
[1745238670209,0.04914856,138.92,138.89,7.24522439]
[1745238670905,0.04914856,138.92,138.9,7.1992]
[1745238672214,0.04914856,138.92,138.91,7.1987]
[1745238672606,0.04914856,138.92,138.89,0.04582439]
[1745238672811,0.04914856,138.92,138.9,7.199]
[1745238673410,0.04914856,138.92,138.91,7.1987]
[1745238674506,0.04914856,138.92,138.91,13.44799401]
[1745238676210,26.22,138.96,138.94,7.197]
[1745238676715,17.68262401,138.97,138.94,7.197]
[1745238677013,17.68262401,138.97,138.95,6.24929401]
[1745238677014,11.43333,138.97,138.95,6.24929401]
[1745238677414,11.4791101,138.97,138.95,0.05452871]
[1745238678416,6.24929401,138.96,138.95,0.05452871]
[1745238679115,13.44539401,138.96,138.95,0.05452871]
[1745238679419,6.24929401,138.96,138.91,6.24929401]
[1745238679815,7.1969,138.95,138.91,13.44769401]
[1745238680511,7.1969,138.95,138.92,0.0472045]
[1745238681816,13.44569401,138.96,138.92,7.2450045]
[1745238682016,6.24929401,138.96,138.92,0.0472045]
[1745238682317,13.44579401,138.96,138.92,7.2453045]
[1745238682517,13.44579401,138.96,138.92,0.0472045]
[1745238683316,13.44579401,138.96,138.93,7.1976]
[1745238684719,13.44579401,138.96,138.92,7.2451045]
[1745238685221,7.1967,138.95,138.92,7.2451045]
[1745238686822,13.44559401,138.96,138.92,7.2451045]
[1745238687927,13.44559401,138.96,138.93,7.1976]
[1745238688222,37.6991101,138.97,138.93,6.24929401]
[1745238688421,6.24929401,138.96,138.92,0.0472045]
[1745238688628,7.1967,138.95,138.92,0.0472045]
[1745238688924,6.24929401,138.96,138.92,7.2451045]
[1745238689126,13.44569401,138.96,138.92,0.0472045]
[1745238689522,11.4791101,138.97,138.93,6.24929401]
[1745238691231,11.4791101,138.97,138.94,7.1971]
[1745238691427,11.4791101,138.97,138.93,6.24929401]
[1745238692028,11.4791101,138.97,138.96,7.1961]
[1745238692627,11.4791101,138.97,138.95,13.49155057]
[1745238693029,11.4791101,138.97,138.95,6.29515057]
[1745238693230,11.4791101,138.97,138.96,7.1961]
[1745238699633,6.24929401,139.03,139.0,7.194]
[1745238700037,7.1943,139.0,138.96,7.1959]
[1745238700433,6.24929401,139.01,138.95,6.24929401]
[1745238700634,7.1943,139.0,138.95,6.24929401]
[1745238700835,0.05085522,138.99,138.97,0.04890313]
[1745238701434,6.30014923,138.99,138.97,0.04890313]
[1745238701935,13.49494923,138.99,138.97,0.04890313]
[1745238702235,0.05085522,138.99,138.97,0.04890313]
[1745238702837,7.24585522,138.99,138.97,0.04890313]
[1745238707240,0.05085522,138.99,138.97,6.29819714]
[1745238707938,0.05085522,138.99,138.98,7.1951]
[1745238710941,26.2,139.03,138.97,6.29819714]
[1745238711146,38.54949401,139.06,139.0,6.24929401]
[1745238711443,35.4813,139.06,139.02,7.1926]
[1745238711943,0.05303104,139.05,139.03,0.04801977]
[1745238714147,0.05303104,139.05,139.03,7.24051977]
[1745238716445,7.24453104,139.05,139.03,0.04801977]
[1745238716651,6.30232505,139.05,139.03,0.04801977]
[1745238717853,7.192,139.04,139.03,0.04801977]
[1745238720246,6.30232505,139.05,138.98,6.24929401]
[1745238720450,6.24929401,138.99,138.95,6.24929401]
[1745238720653,6.24929401,138.99,138.94,26.18]
[1745238720853,13.44489401,138.97,138.92,6.24929401]
[1745238721252,6.24929401,138.97,138.92,6.24929401]
[1745238721453,7.24412451,138.96,138.93,7.25063746]
[1745238721656,7.24412451,138.96,138.93,0.05333746]
[1745238721954,0.04792451,138.96,138.93,0.05333746]
[1745238722454,0.04792451,138.96,138.95,7.1966]
[1745238725252,6.24929401,138.98,138.95,7.1966]
[1745238725457,6.24929401,138.98,138.96,7.1961]
[1745238725758,6.24929401,138.98,138.94,6.24929401]
[1745238725959,13.44399401,138.99,138.95,7.1962]
[1745238726459,0.05214496,138.98,138.95,7.1962]
[1745238726955,0.05214496,138.98,138.96,7.1961]
[1745238727959,7.24734496,138.98,138.96,7.1961]
[1745238728358,0.05214496,138.98,138.96,7.1961]
[1745238728957,7.24724496,138.98,138.95,7.1964]
[1745238729153,6.24929401,138.97,138.93,0.05333746]
[1745238729349,6.24929401,138.94,138.93,0.05333746]
[1745238730256,13.44649401,138.94,138.93,0.05333746]
[1745238733458,0.04623044,138.95,138.93,0.05333746]
[1745238733659,0.04623044,138.95,138.93,6.30263147]
[1745238733964,0.04623044,138.95,138.94,7.1972]
[1745238735967,0.04623044,138.95,138.93,7.25093746]
[1745238737464,7.24293044,138.95,138.93,7.25093746]
[1745238738269,7.1972,138.94,138.93,0.05333746]
[1745238738568,0.04623044,138.95,138.93,0.05333746]
[1745238738766,7.24323044,138.95,138.93,0.05333746]
[1745238739166,7.1972,138.94,138.93,0.05333746]
[1745238740869,13.44649401,138.94,138.93,0.05333746]
[1745238741260,6.24929401,138.94,138.9,7.199]
[1745238741567,6.24929401,138.92,138.87,6.24929401]
[1745238741761,13.44769401,138.92,138.89,7.1996]
[1745238741962,13.44769401,138.92,138.87,6.24929401]
[1745238742168,13.44769401,138.92,138.89,7.1994]
[1745238742367,0.05314228,138.91,138.89,7.1994]
[1745238742567,7.25194228,138.91,138.88,0.05367242]
[1745238743270,7.25194228,138.91,138.88,7.25367242]
[1745238743769,0.05314228,138.91,138.88,0.05367242]
[1745238744369,7.25194228,138.91,138.88,0.05367242]
[1745238745269,7.25194228,138.91,138.88,7.25357242]
[1745238746577,6.24929401,138.9,138.88,0.05367242]
[1745238747976,13.44889401,138.9,138.88,0.05367242]
[1745238748577,7.1997,138.89,138.88,0.05367242]
[1745238750979,13.44869401,138.9,138.88,0.05367242]
[1745238751374,6.24929401,138.9,138.88,0.05367242]
[1745238751572,7.1997,138.89,138.88,0.05367242]
[1745238754284,6.24929401,138.9,138.82,32.44929401]
[1745238754485,6.24929401,138.86,138.82,32.44929401]
[1745238754675,13.45079401,138.86,138.83,7.2024]
[1745238755279,13.50540525,138.86,138.83,7.25564198]